{"text_format":"1","workbook":"xlsx","n_sheets":4,"sheets":["Checklist","Central Crédito Rural","lista","Dados"],"not_rendered":{"charts":0,"images":13,"macros":1,"external_links":0,"defined_names":0,"comments":0,"pivot_tables":0},"unopened":[],"bounds":{"document_bytes":16777216,"sheet_cells":100000,"rows_first":2000,"rows_last":500,"rows_between":2000,"halvings":0,"cell_chars":16384,"cell_head_chars":4096},"cells_cut":0,"cells_raw":0,"read":"whole","date_system":"1900"}

{"sheet":"Checklist","index":0,"n_rows":55,"n_cols":1,"rows_kept":55,"cut":false,"hidden":true,"merged":[[0,0,0,1]]}
["Checklist "]
["Proponente:"]
["CPF:"]
["Estado Civil:"]
["PF"]
["PJ"]
["Elaborador:"]
["Assistência:"]
["Pronaf:"]
["Pronamp Investimento:"]
["Banpará-Bio Custeio:"]
["Pronamp Custeio até 1,5 milhão:"]
["Custeio acima de R$ 3 milhões:"]
["Custeio até R$ 3 milhões:"]
["Banpará-Bio Investimento:"]
["Investimento Recursos Proprios:"]
["RVN: "]
["Operações em ser:"]
["Aval Terceiro"]
["Aval solidario"]
["Penhor bovino"]
["Penhor de Safra"]
["Hipoteca de imovel rural"]
["Hipoteca de imovel urbano"]
["Estado Civil:"]
["Propriedade titulada"]
["Propriedade arrendada"]
["Comunidade quilombola"]
["Comunidade indigena"]
["Assentado da Reforma Agraria em area coletiva"]
["Assentado da Reforma Agraria em lote individualizado"]
["Mesmo imóvel da Garantia"]
["Propriedade titulada"]
["Propriedade arrendada"]
["Posse"]
["APA  - Area de preservação ambiental"]
["REEX - Reserva extrativista"]
["Passivo em Area de Preservação Permanente"]
["Passivo de Reserva Legal"]
["Sem restrição"]
["Agricola "]
["Pecuária"]
["Piscicultura"]
["Irrigação"]
["Adubos"]
["Construção"]
["Máquinas e Equipamentos"]
["Animais"]
["Saf's"]
["Tipo de propriedade objeto de credito - propria"]
["Tipo de propriedade objeto de credito - arrendada"]
["propriedade rural garantia - arrendada"]
["propriedade rural garantia - propria"]
["propriedade urbana garantia - arrendada"]
["propriedade urbana garantia - propria"]

{"sheet":"Central Crédito Rural","index":1,"n_rows":0,"n_cols":0,"rows_kept":0,"cut":false,"hidden":false,"merged":[]}

{"sheet":"lista","index":2,"n_rows":122,"n_cols":3,"rows_kept":122,"cut":false,"hidden":false,"merged":[]}
["Questionário"]
[]
[{"$f":"CONCATENATE(\"1.Proponente:\",\" \",Checklist!B2)","v":"1.Proponente: "}]
[{"$f":"CONCATENATE(\"2.CPF/CNPJ:\",\" \",Checklist!B3)","v":"2.CPF/CNPJ: "}]
[{"$f":"CONCATENATE(\"3.Estado Civil: \", \"\",Checklist!B4)","v":"3.Estado Civil: "}]
[{"$f":"CONCATENATE(\"4.Elaborador: \", \"\",Checklist!B7)","v":"4.Elaborador: "}]
[{"$f":"CONCATENATE(\"5.Assistência Técnica: \", \"\",Checklist!B8)","v":"5.Assistência Técnica: "}]
[{"$f":"CONCATENATE(\"6.Linha de Crédito: \",IF(Checklist!B9=TRUE,\"Pronaf\",\"\"),\" \",IF(Checklist!B10=TRUE,\"Pronamp Investimento\",\"\"),\" \",IF(Checklist!B11=TRUE,\"Banpará-Bio Custeio\",\"\"),\" \",IF(Checklist!B12=TRUE,\"Pronamp Custeio até 1,5 milhão\",\"\"),\" \",IF(Checklist!B13=TRUE,\"Custeio acima de 3 milhões\",\"\"),\" \",IF(Checklist!B14=TRUE,\"Custeio até 3 milhões\",\"\"),\" \",IF(Checklist!B15=TRUE,\"Banpará-Bio Investimento\",\"\"),\" \",IF(Checklist!B16=TRUE,\"Investimento Recursos Próprios\",\"\"))","v":"6.Linha de Crédito:        "}]
[{"$f":"CONCATENATE(\"7.Possui operações em Ser: \",IF(Checklist!B18=TRUE,\"Sim\",\"Não\"))","v":"7.Possui operações em Ser: Não"}]
[{"$f":"CONCATENATE(\"8.Garantia: \",IF(Checklist!B19=TRUE,\"Aval de Terceiro\",\"\"),IF(Checklist!B20=TRUE,\"Aval Solidário\",\"\"),IF(Checklist!B21=TRUE,\"Penhor Bovino\",\"\"),IF(Checklist!B22=TRUE,\"Penhor Safra\",\"\"),IF(Checklist!B23=TRUE,\"Hipoteca Imóvel Rural\",\"\"),IF(Checklist!B24=TRUE,\"Hipoteca Imóvel Urbano\",\"\"))","v":"8.Garantia: "}]
[{"$f":"CONCATENATE(\"9.Estado Civil do Avalista: \",\"\",Checklist!B25)","v":"9.Estado Civil do Avalista: "}]
[{"$f":"CONCATENATE(\"10.Imóvel Objeto de Crédito/Suporte Forrageiro: \",IF(Checklist!B26=TRUE,\"Propriedade Titulada \",\"\"),IF(Checklist!B27=TRUE,\"Propriedade Arrendada \",\"\"),IF(Checklist!B28=TRUE,\"Propriedade Quilombola \",\"\"),IF(Checklist!B29=TRUE,\"Comunidade Indigena \",\"\"),IF(Checklist!B30=TRUE,\"Assentado de Reforma Agrária em Área Coletiva \",\"\"),IF(Checklist!B31=TRUE,Checklist!A31,\"\"),IF(Checklist!B32=TRUE,Checklist!A32,\"\"),IF(Checklist!$B$35=TRUE,Checklist!$A$35,\"\"))","v":"10.Imóvel Objeto de Crédito/Suporte Forrageiro: "}]
[{"$f":"CONCATENATE(\"11.Restrição Ambiental: \",IF(Checklist!B36=TRUE,Checklist!A36,\"\"),\" \",IF(Checklist!B37=TRUE,Checklist!A37,\"\"),\" \",IF(Checklist!B38=TRUE,Checklist!A38,\"\"),\" \",IF(Checklist!B39=TRUE,Checklist!A39,\"\"),\" \",IF(Checklist!B40=TRUE,Checklist!A40,\"\"))","v":"11.Restrição Ambiental:     "}]
[{"$f":"CONCATENATE(\"12.Atividade Financiada: \",IF(Checklist!B41=TRUE,Checklist!A41,\"\"),\" \",IF(Checklist!B42=TRUE,Checklist!A42,\"\"),\" \",IF(Checklist!B43=TRUE,Checklist!A43,\"\"))","v":"12.Atividade Financiada:   "}]
[{"$f":"CONCATENATE(\"13.Itens Orçados: \",IF(Checklist!B44=TRUE,Checklist!A44,\"\"),\" \",IF(Checklist!B45=TRUE,Checklist!A45,\"\"),\" \",IF(Checklist!B46=TRUE,Checklist!A46,\"\"),\" \",IF(Checklist!B47=TRUE,Checklist!A47,\"\"),\" \",IF(Checklist!B48=TRUE,Checklist!A48,\"\"),\" \",IF(Checklist!B49=TRUE,Checklist!A49,\"\"))","v":"13.Itens Orçados:      "}]
[{"$f":"CONCATENATE(\"14.Remanescente de Vegetação Nativa: \",Checklist!B17)","v":"14.Remanescente de Vegetação Nativa: "}]
[]
["Obs. Outros documentos poderão ser solicitados durante a análise da proposta"]
[]
["Checklist - Documentos Obrigatórios"]
["Documentos do Proponente",true,"Reposta"]
["Documento de Identificação – Proponente",{"$f":"Checklist!B5","v":0},"PF"]
["CPF - Proponente",{"$f":"$B$22","v":0},"PF"]
["Declar. Imposto de Renda + Recibo (Último Exercicio constando as despesas e receitas da atividade rural),  CAR ou CAF",{"$f":"$B$22","v":0},"PF"]
["Comp. Residência (Validade: 30 dias)",{"$f":"$B$22","v":0},"PF"]
["Ato Constitutivo ou Contrato de Constituição da Pessoa Jurídica e suas alterações",{"$f":"Checklist!B6","v":0},"PJ"]
["Cadastro Nacional de Pessoa Jurídica (CNPJ)",{"$f":"$B$26","v":0},"PJ"]
["Ficha de Inscrição do Contribuinte – FIC (Estadual e/ou Municipal), caso se aplique",{"$f":"$B$26","v":0},"PJ"]
["Declaração de Imposto de Renda e Recibo",0,"PJ"]
["Balanço Patrimonial, Demonstração de Resultados - DRE e Relação de Faturamento do Exercício",0,"PJ"]
["Alvará de Licença de Funcionamento emitido pela Prefeitura do Município",{"$f":"$B$26","v":0},"PJ"]
["Licença Ambiental Prévia de Instalação e/ou de Operação ou Dispensa de Licenciamento (emitida pelo Órgão competente)",{"$f":"$B$26","v":0}]
["Relação de Principais Clientes e Fornecedores",0,"PJ"]
["Documento de Identificação com foto – Responsavel Legal e Conjuge (se for casado)",0,"PJ"]
["CPF  –  Responsavel Legal e conjugue (se for casado)",0,"PJ"]
["Comprovante de Renda  –  Responsável Legal ",0,"PJ"]
["Documento de Identificação com foto – Conjuge",{"$f":"IF(OR(Checklist!$B$4=\"casado\",Checklist!$B$4=\"União Estável\"),\"VERDADEIRO\",\"FALSO\")","v":"FALSO"}]
["CPF - Conjuge",{"$f":"IF(OR(Checklist!$B$4=\"casado\",Checklist!$B$4=\"União Estável\"),\"VERDADEIRO\",\"FALSO\")","v":"FALSO"},"Casado , União Estavel"]
["Certidão de Casamento",{"$f":"IF(Checklist!$B$4=\"casado\",\"VERDADEIRO\",\"FALSO\")","v":"FALSO"},"Casado "]
["Declaração de União Estavel",{"$f":"IF(Checklist!$B$4=\"União Estável\",\"VERDADEIRO\",\"FALSO\")","v":"FALSO"},"União Estavel"]
["Declaração de não união estavel.",{"$f":"IF(OR(Checklist!$B$4=\"solteiro\",Checklist!$B$4=\"Solteiro\"),\"VERDADEIRO\",\"FALSO\")","v":"FALSO"},"Solteiro"]
["Certidão de divorcio ",{"$f":"IF(Checklist!$B$4=\"Divorciado\",\"VERDADEIRO\",\"FALSO\")","v":"FALSO"}]
["Certidões e Consultas (PF e PJ)",true]
["Certidão Negativa de Débitos Relativos aos Tributos Federais e à Dívida Ativa da União ",true]
["Certidão Negativa de Natureza Tributária e Não tributária junto à SEFA",true]
["Certidão Negativa de Débitos Trabalhistas",true]
["Certidão de Quitação Eleitoral",{"$f":"$B$22","v":0}]
["Certidão de Regularidade do FGTS ou Declaração de Não Contribuinte à Previdência Social do Empregador (anexo a aba formulário)",true]
["Consultas SPC ",true]
["Consulta Serasa",true]
["Projetista",true]
["Contrato de prestação de Serviços de assistencia tecnica com prazo minimo de implantação do projeto",true,"Fixo"]
["ART - Anotação de Responsabilidade Técnica ",true,"Elaborador PF ou PJ"]
["Projeto de Crédito Rural (Planilha disponível no site do BANPARÁ);",true]
["Garantia",true]
["Documento de IdentIficação com foto - Avalista",{"$f":"IF(OR(Checklist!$B$19=TRUE,Checklist!$B$20=TRUE),\"VERDADEIRO\",\"FALSO\")","v":"FALSO"}]
["CPF - Avalista",{"$f":"IF(OR(Checklist!$B$19=TRUE,Checklist!$B$20=TRUE),\"VERDADEIRO\",\"FALSO\")","v":"FALSO"}]
["Comprovante de Renda  - avalista ",{"$f":"IF(OR(Checklist!$B$19=TRUE,Checklist!$B$20=TRUE),\"VERDADEIRO\",\"FALSO\")","v":"FALSO"}]
["Comprovante de Residência - avalista ",{"$f":"IF(OR(Checklist!$B$19=TRUE,Checklist!$B$20=TRUE),\"VERDADEIRO\",\"FALSO\")","v":"FALSO"}]
["Documento de Identificação com foto - Conjugue do avalista",{"$f":"IF(OR(Checklist!$B$25=\"casado\",Checklist!$B$25=\"União Estável\"),\"VERDADEIRO\",\"FALSO\")","v":"FALSO"},"Estado Civil - Avalista"]
["CPF - Conjugue do avalista",{"$f":"IF(OR(Checklist!$B$25=\"casado\",Checklist!$B$25=\"União Estável\"),\"VERDADEIRO\",\"FALSO\")","v":"FALSO"},"Estado Civil - Avalista"]
["Certidão de Casamento",{"$f":"IF(Checklist!$B$25=\"casado\",\"VERDADEIRO\",\"FALSO\")","v":"FALSO"}]
["Declaração de não união estavel",{"$f":"IF(Checklist!$B$25=\"solteiro\",\"VERDADEIRO\",\"FALSO\")","v":"FALSO"},"Estado Civil - Avalista"]
["Certidão de divorcio e Declaração de não união estavel",{"$f":"IF(Checklist!$B$25=\"Divorciado\",\"VERDADEIRO\",\"FALSO\")","v":"FALSO"},"Estado Civil - Avalista"]
["Declaração de União Estável",{"$f":"IF(Checklist!$B$25=\"União Estável\",\"VERDADEIRO\",\"FALSO\")","v":"FALSO"},"Estado Civil - Avalista"]
["Certidão de Inteiro Teor - cadeia dominial completa do imovel com origem no poder público (Validade 30 dias)",{"$f":"IF(Checklist!$B$23=TRUE,\"VERDADEIRO\",\"FALSO\")","v":"FALSO"},"Imóvel rural"]
["Certidão de ônus do Imóvel (Validade: 30 dias)",{"$f":"IF(Checklist!$B$23=TRUE,\"VERDADEIRO\",\"FALSO\")","v":"FALSO"},"Imóvel rural"]
["Certificado de Cadastro do Imóvel Rural - CCIR + Comp. Pag. ",{"$f":"IF(Checklist!$B$23=TRUE,\"VERDADEIRO\",\"FALSO\")","v":"FALSO"},"Imóvel rural"]
["Certidão de Débitos Relativos a Tributos Federais e à Dívida Ativa da União de Imóvel Rural (ITR)",{"$f":"IF(Checklist!$B$23=TRUE,\"VERDADEIRO\",\"FALSO\")","v":"FALSO"},"Imóvel rural"]
["Certidão Negativa de Embargo junto ao IBAMA",{"$f":"IF(Checklist!$B$23=TRUE,\"VERDADEIRO\",\"FALSO\")","v":"FALSO"},"Imóvel rural"]
["Certidão Negativa de Débito junto ao IBAMA",{"$f":"IF(Checklist!$B$23=TRUE,\"VERDADEIRO\",\"FALSO\")","v":"FALSO"},"Imóvel rural"]
["Certidão de Desmatamento Ilegal - LDI",{"$f":"IF(Checklist!$B$23=TRUE,\"VERDADEIRO\",\"FALSO\")","v":"FALSO"},"Imóvel rural"]
["Georreferenciamento para imóveis acima de 100ha ou mapa simples se for imóvel abaixo de 100ha (obg.)",{"$f":"IF(Checklist!$B$23=TRUE,\"VERDADEIRO\",\"FALSO\")","v":"FALSO"},"Imóvel rural"]
["Recibo do CAR + Demonstrativo",{"$f":"IF(Checklist!$B$23=TRUE,\"VERDADEIRO\",\"FALSO\")","v":"FALSO"},"Imóvel rural"]
["Contrato arrendamento / Comodato",{"$f":"IF(Checklist!$B$52=TRUE,\"VERDADEIRO\",\"FALSO\")","v":"FALSO"},"Imóvel rural - arrendado"]
["Licença de Atividade Rural - LAR ou Protocolo ou Dispensa de Licenciamento Ambiental - DLA",{"$f":"IF(Checklist!$B$23=TRUE,\"VERDADEIRO\",\"FALSO\")","v":"FALSO"},"Imóvel rural"]
["Aplicar questionário de enquadramento de imóveis abaixo de 4 módulos fiscais (caso se aplique)",{"$f":"IF(Checklist!$B$23=TRUE,\"VERDADEIRO\",\"FALSO\")","v":"FALSO"},"Imóvel rural"]
["Carta de Anuência (Validade: 30 dias)",{"$f":"IF(Checklist!$B$52=TRUE,\"VERDADEIRO\",\"FALSO\")","v":"FALSO"},"Imóvel rural - arrendado"]
["Certidão de Inteiro Teor - cadeia dominial completa do imovel com origem no poder público (Validade 30 dias)",{"$f":"IF(Checklist!$B$24=TRUE,\"VERDADEIRO\",\"FALSO\")","v":"FALSO"},"Imóvel Urbano"]
["Certidão de ônus do Imóvel (Validade: 30 dias)",{"$f":"IF(Checklist!$B$24=TRUE,\"VERDADEIRO\",\"FALSO\")","v":"FALSO"},"Imóvel Urbano"]
["Certidão Negativa de Tributos Municipais",{"$f":"IF(Checklist!$B$24=TRUE,\"VERDADEIRO\",\"FALSO\")","v":"FALSO"},"Imóvel Urbano"]
["Cotação do Seguro dos animais",{"$f":"IF(Checklist!$B$21=TRUE,TRUE,FALSE)","v":false},"Penhor Bovino"]
["Cotação do Seguro ",{"$f":"IF(Checklist!$B$22=TRUE,TRUE,FALSE)","v":false},"Penhor Safra"]
["Carta de Anuência ",{"$f":"IF(Checklist!$B$54=TRUE,\"VERDADEIRO\",\"FALSO\")","v":"FALSO"},"Imóvel Urbano - terceiro"]
["Imóvel Objeto do Crédito/Suporte Forrageiro",true]
["Mesma documentação apresentada para garantia",{"$f":"IF(Checklist!$B$32=TRUE,\"VERDADEIRO\",\"FALSO\")","v":"FALSO"},"Mesmo imóvel de garantia"]
["Certidão de Inteiro Teor da Matricula (Validade 1 ano)",{"$f":"IF(Checklist!$B$26=TRUE,\"VERDADEIRO\",\"FALSO\")","v":"FALSO"},"Propriedade Titulada"]
["Certificado de Cadastro do Imóvel Rural - CCIR + Comp. Pag. ",{"$f":"IF(Checklist!$B$26=TRUE,\"VERDADEIRO\",\"FALSO\")","v":"FALSO"},"Propriedade Titulada"]
["Certidão de Débitos Relativos a Tributos Federais e à Dívida Ativa da União de Imóvel Rural (ITR)",{"$f":"IF(Checklist!$B$26=TRUE,\"VERDADEIRO\",\"FALSO\")","v":"FALSO"},"Propriedade Titulada"]
["Georreferenciamento para imóveis acima de 100ha ou mapa simples se for imóvel abaixo de 100ha (obg.)",{"$f":"IF(Checklist!$B$26=TRUE,\"VERDADEIRO\",\"FALSO\")","v":"FALSO"},"Propriedade Titulada"]
["Recibo do CAR + Demonstrativo",{"$f":"IF(Checklist!$B$26=TRUE,\"VERDADEIRO\",\"FALSO\")","v":"FALSO"},"Propriedade Titulada"]
["Contrato arrendamento / Comodato",{"$f":"IF(Checklist!$B$51=TRUE,\"VERDADEIRO\",\"FALSO\")","v":"FALSO"},"Propriedade Titulada"]
["Espelho da unidade familiar ou declaração de assentado ou declaração de tramite de processo de regularização fundiária no caso de assentamentos do ITERPA.",{"$f":"IF(OR(Checklist!$B$30=TRUE,Checklist!$B$31=TRUE),\"VERDADEIRO\",\"FALSO\")","v":"FALSO"},"Assentamento"]
["Recibo do CAR + Demonstrativo",{"$f":"IF(OR(Checklist!$B$30=TRUE,Checklist!$B$31=TRUE),\"VERDADEIRO\",\"FALSO\")","v":"FALSO"},"Assentamento"]
["Certidão de Desmatamento Ilegal - LDI",{"$f":"IF(OR(Checklist!$B$30=TRUE,Checklist!$B$31=TRUE),\"VERDADEIRO\",\"FALSO\")","v":"FALSO"},"Assentamento"]
["Certidão Negativa de Embargo junto ao IBAMA",{"$f":"IF(OR(Checklist!$B$30=TRUE,Checklist!$B$31=TRUE),\"VERDADEIRO\",\"FALSO\")","v":"FALSO"},"Assentamento"]
["Certidão Negativa de Débito junto ao IBAMA",{"$f":"IF(OR(Checklist!$B$30=TRUE,Checklist!$B$31=TRUE),\"VERDADEIRO\",\"FALSO\")","v":"FALSO"},"Assentamento"]
["Para informações espeficicas sobre esse tipo de imóvel, procure uma agência do Banpará",{"$f":"IF(OR(Checklist!$B$28=TRUE,Checklist!$B$29=TRUE),\"VERDADEIRO\",\"FALSO\")","v":"FALSO"},"Quilombola e Indigena"]
["Requerimento de Regularização Fundiária junto ao Órgao, Declaração de Aptidão ao Pronaf (DAP), Cadastro de Agricultor Familiar (CAF), Contrato de Concessão de Uso (CCU), Termo de Concessão de Uso (TCU)",{"$f":"IF(Checklist!$B$35=TRUE,TRUE,FALSE)","v":false},"Posse"]
["Certificado de Cadastro do Imóvel Rural - CCIR + Comp. Pag. ",{"$f":"IF(Checklist!$B$35=TRUE,TRUE,FALSE)","v":false},"Posse"]
["Certidão de Débitos Relativos a Tributos Federais e à Dívida Ativa da União de Imóvel Rural (ITR)",{"$f":"IF(Checklist!$B$35=TRUE,TRUE,FALSE)","v":false},"Posse"]
["Georreferenciamento para imóveis acima de 100ha ou mapa simples se for imóvel abaixo de 100ha (obg.)",{"$f":"IF(Checklist!$B$35=TRUE,TRUE,FALSE)","v":false},"Posse"]
["Recibo do CAR + Demonstrativo",{"$f":"IF(Checklist!$B$35=TRUE,TRUE,FALSE)","v":false},"Posse"]
["Certidão de Desmatamento Ilegal - LDI",{"$f":"IF(Checklist!$B$35=TRUE,TRUE,FALSE)","v":false},"Posse"]
["Certidão Negativa de Embargo junto ao IBAMA",{"$f":"IF(Checklist!$B$35=TRUE,TRUE,FALSE)","v":false},"Posse"]
["Certidão Negativa de Débito junto ao IBAMA",{"$f":"IF(Checklist!$B$35=TRUE,TRUE,FALSE)","v":false},"Posse"]
["Licença de Atividade Rural - LAR ou Protocolo ou Dispensa de Licenciamento Ambiental - DLA",true]
["Exigências por finalidade/itens orçados",true]
["Outorga de Direito de Uso de Recursos hídricos (Obg. Para investimento ou Custeio com irrigação) ",{"$f":"IF(Checklist!$B$44=TRUE,\"VERDADEIRO\",\"FALSO\")","v":"FALSO"},"Irrigação"]
["Análise de Solo + Recomendação Técnica (Obg. Para investimento de Correção de Solo ou Custeio com aquisição de calcário + adubação)",{"$f":"IF(Checklist!B45=TRUE,\"VERDADEIRO\",\"FALSO\")","v":"FALSO"},"Adubo"]
["Projeto arquitetônico, orçamentário, Cronograma de Aplicação, Licença Prévia, Licença de Instalação, Licença de Operação. (caso se aplique)",{"$f":"IF(Checklist!$B$46=TRUE,\"VERDADEIRO\",\"FALSO\")","v":"FALSO"},"Construções"]
["Orçamento máquinas e/ou Equipamentos: deve ser do fabricante/distribuidor + Codigo FINAME. ",{"$f":"IF(Checklist!$B$47=TRUE,\"VERDADEIRO\",\"FALSO\")","v":"FALSO"},"Máquinas "]
["Orçamento comercial dos animais (Validade: 30 dias) ",{"$f":"IF(Checklist!$B$48=TRUE,\"VERDADEIRO\",\"FALSO\")","v":"FALSO"},"Animais"]
["Croqui com dimensionamento das culturas (Obg. para Saf's)",{"$f":"IF(Checklist!$B$49=TRUE,\"VERDADEIRO\",\"FALSO\")","v":"FALSO"},"SAF"]
["Contrato de Financiamento com outras instituições (Obg.)",{"$f":"IF(Checklist!$B$18=TRUE,TRUE,FALSE)","v":false},"Ourtas Operações em ser"]
["Outros alvarás, licenças, autorizações e certificados que sejam exigidos por órgãos competentes em função do ramo de atividade a ser financiada, exemplo: Ministério da Saúde, Ministério da Agricultura, Pecuária e Abastecimento (MAPA), Vigilância Sanitária, Departamento Nacional de Produção Mineral (DNPM), etc.(caso se aplique)",{"$f":"IF(Checklist!$B$46=TRUE,\"VERDADEIRO\",\"FALSO\")","v":"FALSO"},"Construções"]
["Ficha Sanitária Adepará de todos os imoveis objetos de financiamento ",{"$f":"IF(Checklist!$B$42=TRUE,\"VERDADEIRO\",\"FALSO\")","v":"FALSO"},"Pecuária"]
["Autorização de Supreção Vegetal - ASV (caso se aplique)",{"$f":"IF(Checklist!$B$41=TRUE,\"VERDADEIRO\",\"FALSO\")","v":"FALSO"},"Agricola"]
[]
[{"$f":"IF(Checklist!$B$17=\"\",\"\",CONCATENATE(\"Enquadramento Banpara-Bio: \",IF(Checklist!$B$17=\"De 0 a 10% da área do imóvel\",\"No mínimo 60% para atividade de proteção ambiental e/ou introdução de novas tecnologias e/ou melhoramento das explorações e/ou atividades sustentáveis de interesse econômico. (seguindo os parâmetros do Programa ABC – MCR 11-7-1d).\",\"\"),IF(Checklist!$B$17=\"De 10 a 25% da área do imóvel\",\"No mínimo 35% para atividade de proteção ambiental, introdução de novas tecnologias e/ou melhoramento das explorações e/ou atividades sustentáveis de interesse econômico. (seguindo os parâmetros do Programa ABC – MCR 11-7-1d).\",\"\"),IF(Checklist!$B$17=\"De 25 a 50% da área do imóvel\",\"No mínimo 10% para atividade de proteção ambiental, introdução de novas tecnologias e/ou melhoramento das explorações e/ou atividades sustentáveis de interesse econômico. (seguindo os parâmetros do Programa ABC – MCR 11-7-1d).\",\"\"),IF(Checklist!$B$17=\"Acima de 50% da área do imóvel\",\"Até 100% do valor do financiamento para atividade de interesse econômico e/ou atividades sustentáveis de interesse econômico.\",\"\")))","v":""}]
[]
[{"$f":"IF(Checklist!$B$17=\"\",\"\",CONCATENATE(\"Observação 1:\",IF(OR(Checklist!$B$36=TRUE,Checklist!$B$37=TRUE,Checklist!$B$38=TRUE,Checklist!$B$39=TRUE),\"Para propriedades que possuem Passivos de reserva legal e/ou Passivos de área de preservação permanente, esse percentual deve prioritariamente ser investido nas atividades que tenha como objetivo a regularização do passivo existente, conforme selo verde.\",\"\")))","v":""}]

{"sheet":"Dados","index":3,"n_rows":4,"n_cols":7,"rows_kept":4,"cut":false,"hidden":true,"merged":[]}
["Casado",null,"Emater",null,"Emater",null,"De 0 a 10% da área do imóvel"]
["Solteiro",null,"Outros Projetistas PF",null,"Prestado por PF",null,"De 10 a 25% da área do imóvel"]
["Divorciado",null,"Outros Projetistas PJ",null,"Prestado por PJ",null,"De 25 a 50% da área do imóvel"]
["União estável",null,null,null,null,null,"Acima de 50% da área do imóvel"]